bitfinex-derivatives/quotes_ETHF0:USTF0_20251013
["timestamp","ask_amount","ask_price","bid_price","bid_amount"]
[1760373706727,0.5189,4146.5,4146.4,0.43371]
[1760373706925,0.5189,4146.5,4146.2,0.00120831]
[1760373707123,0.5189,4146.3,4146.2,0.00120831]
[1760373707428,3.62009246,4146.3,4146.2,0.00120831]
[1760373707925,3.86709246,4146.3,4146.2,0.00120831]
[1760373709030,3.62009246,4146.3,4146.2,0.00120831]
[1760373709518,0.5324,4146.9,4146.4,1.0843]
[1760373709719,0.5324,4146.9,4146.5,0.5426]
[1760373709925,3.60598634,4146.8,4146.7,0.43368]
[1760373710328,0.5324,4146.8,4146.7,0.43368]
[1760373710528,3.60598634,4146.8,4146.7,0.43368]
[1760373711029,4.03966634,4146.8,4146.5,0.4337]
[1760373711332,0.96612,4146.4,4146.2,0.00120831]
[1760373711633,0.5324,4146.3,4146.2,0.43494831]
[1760373712928,0.5324,4146.3,4146.2,0.00120831]
[1760373713131,3.64257976,4146.3,4146.2,0.00120831]
[1760373713834,6.85037976,4146.3,4146.2,0.00120831]
[1760373717136,7.41110859,4146.3,4146.2,0.00120831]
[1760373717440,7.84483859,4146.3,4146.2,0.00120831]
[1760373717635,7.41110859,4146.3,4146.2,0.43494831]
[1760373717941,6.85037976,4146.3,4146.2,0.94944831]
[1760373718136,7.28410976,4146.3,4146.2,0.00120831]
[1760373718333,8.09205428,4146.3,4146.2,0.00120831]
[1760373718533,6.85037976,4146.3,4146.2,0.43494831]
[1760373719339,7.41161262,4146.3,4146.2,0.43494831]
[1760373719740,6.85037976,4146.3,4146.2,0.43494831]
[1760373720242,4.2041063,4146.3,4146.2,0.43494831]
[1760373720434,3.2078,4146.9,4146.2,0.43494831]
[1760373720435,3.2078,4146.9,4146.8,0.43368]
[1760373720634,3.2078,4147.4,4147.2,1.08409]
[1760373720836,1.47202614,4148.0,4147.9,0.94806]
[1760373720837,0.85977826,4148.0,4147.9,0.94806]
[1760373721141,0.85977826,4148.0,4147.1,3.2078]
[1760373721142,0.562,4147.6,4147.1,3.2078]
[1760373721339,0.7789,4147.5,4147.4,0.43361]
[1760373721541,3.9609674,4147.5,4147.4,0.43361]
[1760373721734,0.7789,4147.5,4147.4,0.43361]
[1760373722032,0.43363,4147.3,4146.4,0.43372]
[1760373722232,0.562,4147.1,4147.0,0.43365]
[1760373722838,0.562,4147.5,4147.4,0.43361]
[1760373723137,3.65514573,4147.5,4147.4,0.43361]
[1760373723334,3.65514573,4147.5,4146.8,3.2078]
[1760373723335,4.30100415,4147.5,4146.8,3.2078]
[1760373723535,0.562,4147.4,4146.8,3.2078]
[1760373723730,3.2078,4147.2,4147.0,0.43365]
[1760373723935,0.562,4147.1,4147.0,0.43365]
[1760373724138,3.69315202,4147.1,4147.0,0.43365]
[1760373724332,0.43362,4147.4,4147.0,0.43365]
[1760373724333,0.7789,4147.5,4147.4,0.43361]
[1760373724536,0.562,4147.5,4147.2,0.43363]
[1760373724742,0.43365,4147.1,4146.8,0.43367]
[1760373724941,3.2078,4147.2,4147.1,0.43365]
[1760373725143,3.40853942,4147.0,4146.4,0.7615]
[1760373725439,3.64144,4147.2,4147.0,0.94816]
[1760373725440,3.19163942,4147.1,4147.0,0.94816]
[1760373725661,3.2078,4147.2,4147.1,0.5145]
[1760373725835,0.562,4147.5,4147.1,0.5145]
[1760373726037,0.562,4148.0,4147.9,0.43356]
[1760373726237,1.11923456,4148.0,4147.9,0.43356]
[1760373726439,3.66335412,4148.0,4147.9,0.94806]
[1760373726640,3.66335412,4148.0,4147.9,0.43356]
[1760373726938,4.22535412,4148.0,4147.9,0.43356]
[1760373727140,4.44225412,4148.0,4147.9,0.43356]
[1760373727837,0.43359,4147.7,4147.5,0.4336]
[1760373728037,3.7698,4147.6,4147.5,0.4336]
[1760373728340,6.87370673,4147.6,4147.5,0.4336]
[1760373729743,0.562,4147.4,4147.0,1.33115]
[1760373729944,6.31170673,4147.6,4147.1,0.5145]
[1760373730140,3.64139,4147.6,4147.4,0.43361]
[1760373730444,0.562,4147.4,4147.3,0.43362]
[1760373730937,3.2078,4147.6,4147.0,0.247]
[1760373730938,3.2078,4147.6,4147.4,0.94811]
[1760373731145,3.2078,4147.6,4146.8,0.5145]
[1760373731146,0.7789,4147.5,4146.8,0.5145]
[1760373731338,3.11659288,4147.4,4147.2,0.43363]
[1760373731540,3.11659288,4147.5,4147.2,0.43362]
[1760373731738,0.43363,4147.2,4147.0,0.43365]
[1760373731940,0.2169,4147.5,4147.0,0.68065]
[1760373731941,0.562,4147.1,4147.0,0.68065]
[1760373732977,0.562,4147.1,4146.2,0.00120831]
[1760373732978,0.43373,4146.3,4146.2,0.00120831]
[1760373733147,0.99573,4146.3,4146.2,0.00120831]
[1760373733835,0.562,4146.3,4146.2,0.00120831]
[1760373734239,3.2078,4146.4,4146.3,0.94823]
[1760373734450,0.809,4146.9,4146.6,0.4337]
[1760373734745,3.06959487,4146.8,4146.7,0.5145]
[1760373734943,3.06959487,4146.8,4146.7,3.7223]
[1760373735145,3.2078,4147.5,4147.4,0.94811]
[1760373735344,0.86286463,4148.2,4148.1,0.43354]
[1760373735345,0.00308637,4148.2,4148.1,0.43354]
[1760373735547,0.00308637,4148.2,4148.1,0.94804]
[1760373736850,0.00308637,4148.2,4148.1,1.19504]
[1760373738149,0.00308637,4148.2,4148.1,0.94804]
[1760373738450,0.00308637,4148.2,4148.1,1.19504]
[1760373738847,3.2078,4149.1,4149.0,0.43345]
[1760373739164,3.2078,4149.1,4149.0,1.19495]
[1760373739352,3.2078,4149.1,4149.0,0.7615]
[1760373739555,3.7698,4149.1,4149.0,0.247]
[1760373739754,0.562,4148.6,4148.5,0.4335]
[1760373739954,0.56440286,4148.6,4148.5,0.6805]
[1760373740144,0.56440286,4148.6,4148.5,0.247]
[1760373741554,0.56440286,4148.6,4148.5,0.7615]
[1760373741858,0.00240286,4148.6,4148.5,0.5145]
[1760373742254,1.5474,4149.5,4148.5,0.5145]
[1760373742255,3.7425,4149.6,4149.4,0.43341]
[1760373742454,3.7425,4149.6,4149.5,0.5169]
[1760373742455,3.2078,4149.6,4149.5,0.5169]
[1760373742655,0.2169,4150.0,4149.9,0.43335]
[1760373742656,0.5347,4150.0,4149.9,0.43335]
[1760373742956,3.2078,4150.1,4150.0,0.5169]
[1760373743154,3.2078,4150.1,4150.0,0.51929697]
[1760373743458,3.21064814,4150.1,4150.0,0.51929697]
[1760373743653,3.21064814,4150.1,4150.0,0.73429697]
[1760373743855,3.21064814,4150.1,4150.0,0.51929697]
[1760373744057,3.21064814,4150.1,4150.0,0.24939697]
[1760373744058,3.74534814,4150.1,4150.0,0.24939697]
[1760373744650,6.90467326,4150.1,4150.0,0.00239697]
[1760373746261,3.21064814,4150.1,4150.0,0.51929697]
[1760373746762,6.85225203,4150.1,4150.0,0.00239697]
[1760373748360,0.96815,4149.1,4149.0,0.247]
[1760373748571,0.96815,4149.1,4149.0,0.5169]
[1760373748761,0.43353,4148.3,4147.8,3.2078]
[1760373748964,3.2078,4148.7,4148.3,0.43352]
[1760373749156,0.4335,4148.5,4148.3,0.00286171]
[1760373749469,0.4335,4148.5,4148.3,0.43638171]
[1760373749861,0.4335,4148.5,4148.4,0.5169]
[1760373750164,0.4335,4148.5,4148.3,0.00286171]
[1760373750165,3.71361549,4148.4,4148.3,0.00286171]
[1760373751654,0.43362,4147.3,4147.2,3.7247]
[1760373751862,0.43362,4147.3,4147.2,3.9717]
[1760373752164,0.43361,4147.5,4147.4,0.5169]
[1760373752560,3.2078,4147.9,4147.4,0.9505]
[1760373752766,0.43359,4147.6,4147.5,0.5169]
[1760373753968,0.43358,4147.8,4147.5,0.5169]
[1760373754165,3.2078,4147.9,4147.7,0.43358]
[1760373754367,0.5331,4148.9,4148.0,0.2157]
[1760373754669,0.2153,4149.5,4148.6,0.5514]
[1760373754670,0.5331,4149.5,4148.6,0.5514]
[1760373754866,3.2078,4149.7,4148.8,0.5514]
[1760373755061,0.00284814,4150.1,4148.7,0.247]
[1760373755062,0.00284814,4150.1,4150.0,0.7671]
[1760373755361,3.2078,4150.7,4150.5,0.43328]
[1760373755568,3.2078,4150.7,4150.6,0.5514]
[1760373755763,0.5331,4150.6,4150.4,0.43329]
[1760373755964,3.2078,4150.7,4150.6,0.43328]
[1760373756269,3.21012436,4150.7,4150.6,0.43605153]
[1760373756571,3.74322436,4150.7,4150.6,0.43605153]
[1760373757365,3.74322436,4150.7,4150.6,0.00277153]
[1760373757567,0.5331,4150.2,4149.4,0.4334]
[1760373757769,0.43343,4149.2,4149.0,0.247]
[1760373757973,0.5331,4149.1,4149.0,0.247]
[1760373758571,0.96651,4149.4,4149.1,0.98484]
[1760373758764,0.43342,4149.3,4149.1,0.98484]
[1760373759474,0.5331,4149.9,4149.4,0.4334]
[1760373759770,3.16165103,4149.8,4149.5,0.5514]
[1760373759970,3.69475103,4149.8,4149.5,0.5514]
[1760373760165,0.5331,4149.8,4149.5,0.5514]
[1760373760365,0.43339,4149.6,4149.5,0.5514]
[1760373760560,0.4334,4149.5,4149.3,0.43341]
[1760373760766,0.4334,4149.5,4149.4,0.247]
[1760373760968,0.4334,4149.5,4149.3,0.5514]
[1760373761168,0.43341,4149.4,4149.2,0.43342]
[1760373761371,0.43341,4149.4,4149.3,0.5514]
[1760373761769,3.075448,4149.9,4149.4,0.5514]
[1760373761973,0.4334,4149.5,4149.4,0.5514]
[1760373762672,0.9665,4149.5,4149.3,0.98481]
[1760373763268,0.9665,4149.5,4149.4,0.5514]
[1760373763269,0.4334,4149.5,4149.4,0.5514]
[1760373763670,3.2078,4150.0,4149.8,0.43336]
[1760373763873,3.21012436,4150.7,4150.0,0.2157]
[1760373764069,3.64340436,4150.7,4150.5,0.5514]
[1760373764273,0.00232436,4150.7,4150.6,0.5514]
[1760373764966,0.43559436,4150.7,4150.6,0.247]
[1760373765370,0.43559436,4150.7,4150.6,0.7984]
[1760373765569,0.43559436,4150.7,4150.6,0.5514]
[1760373765770,0.5331,4150.4,4150.0,0.2157]
[1760373765973,0.5331,4150.4,4150.2,0.5514]
[1760373766270,0.43329,4150.6,4150.4,0.4333]
[1760373766474,0.43329,4150.6,4150.5,0.5514]
[1760373766775,0.4333,4150.4,4150.3,0.5514]
[1760373767480,0.43328,4150.6,4150.5,0.5514]
[1760373768077,0.43328,4150.6,4150.4,0.4333]
[1760373768078,0.5331,4150.5,4150.4,0.4333]
[1760373768381,0.9664,4150.4,4150.2,0.43331]
[1760373768577,0.9664,4150.4,4150.2,0.98471]
[1760373768773,0.9664,4150.4,4150.3,0.5514]
[1760373769079,0.4333,4150.4,4150.3,0.5514]
[1760373769275,0.4333,4150.4,4149.8,3.2078]
[1760373769276,0.43336,4149.9,4149.6,0.43338]
[1760373769480,0.5331,4149.8,4149.7,0.247]
[1760373769775,0.43336,4149.9,4149.7,0.68037]
[1760373769983,0.43336,4149.9,4149.8,0.5514]
[1760373770374,0.43336,4149.9,4149.7,0.247]
[1760373770375,0.5331,4149.8,4149.7,0.247]
[1760373770581,0.43337,4149.7,4149.4,0.5514]
[1760373770880,0.43337,4149.7,4149.5,1.23179]
[1760373771184,0.43337,4149.7,4149.6,0.5514]
[1760373771373,0.43344,4149.1,4149.0,0.00151548]
[1760373771577,0.96654,4149.1,4149.0,0.00151548]
[1760373771874,4.03381146,4149.1,4149.0,0.00151548]
[1760373772079,0.43351,4148.4,4148.3,0.247]
[1760373772280,0.95941,4148.4,4148.3,0.247]
[1760373772484,0.43349,4148.6,4148.3,0.247]
[1760373772682,3.2078,4148.8,4148.3,0.247]
[1760373772683,0.43351,4148.5,4148.3,0.247]
[1760373772874,0.95685,4148.1,4147.7,3.2078]
[1760373773078,0.5233,4147.4,4147.3,0.43362]
[1760373773376,0.43365,4147.1,4146.9,0.43366]
[1760373773583,0.43365,4147.1,4146.7,3.7532]
[1760373773584,3.06715081,4147.4,4147.0,0.97905]
[1760373773778,0.5233,4147.3,4147.0,1.22605]
[1760373774088,0.00179435,4147.4,4147.3,0.97903]
[1760373776182,0.95678,4148.7,4147.6,0.5454]
[1760373776388,0.95678,4148.7,4148.5,0.43349]
[1760373777089,0.95678,4148.7,4148.5,0.97889]
[1760373777385,0.5233,4148.6,4148.5,0.43528435]
[1760373777783,0.5233,4148.6,4148.5,0.00179435]
[1760373778291,1.08389,4148.0,4147.0,3.7532]
[1760373778481,0.5233,4147.3,4147.1,0.247]
[1760373778681,3.2078,4147.7,4147.0,3.2078]
[1760373778682,0.5233,4147.1,4147.0,3.2078]
[1760373778882,0.95696,4147.0,4146.8,0.68067]
[1760373779783,0.957,4146.6,4146.5,0.247]
[1760373780092,0.1991,4146.5,4145.9,0.43377]
[1760373780289,0.5233,4146.4,4146.0,0.68076]
[1760373780487,0.43374,4146.3,4146.1,0.43375]
[1760373780685,0.43375,4146.2,4146.0,0.7924]
[1760373780884,0.43376,4146.0,4145.9,0.43376]
[1760373781186,3.2078,4146.7,4146.1,0.43374]
[1760373781187,0.43372,4146.4,4146.1,0.43374]
[1760373781386,3.2078,4146.7,4146.1,0.43374]
[1760373781387,0.95703,4146.3,4146.1,0.43374]
[1760373781782,0.43372,4146.4,4146.2,0.43374]
[1760373782085,0.95702,4146.4,4146.2,0.43374]
[1760373782283,0.43373,4146.3,4146.0,0.97915]
[1760373782488,0.95704,4146.2,4146.0,0.97915]
[1760373782687,0.5233,4146.2,4146.0,0.97915]
[1760373783600,0.95703,4146.4,4146.3,0.43373]
[1760373784492,0.5233,4146.4,4146.3,0.43373]
[1760373784691,0.5233,4147.0,4146.2,0.5454]
[1760373784892,0.5233,4147.0,4146.9,0.43367]
[1760373785292,0.5233,4147.0,4146.2,1.62976]
[1760373785293,0.5233,4146.9,4146.8,0.43367]
[1760373785493,0.43367,4146.9,4146.6,0.43369]
[1760373785693,0.5233,4146.8,4146.7,0.43368]
[1760373786492,0.5233,4147.1,4146.9,0.43366]
[1760373786693,0.5233,4147.1,4146.7,0.5454]
[1760373786694,0.43365,4147.1,4146.7,0.5454]
[1760373786894,3.2078,4147.2,4146.6,0.247]
[1760373787094,3.2078,4147.2,4147.1,0.97905]
[1760373787691,3.2078,4147.7,4147.6,0.43359]
[1760373787892,0.5233,4147.6,4146.7,0.5454]
[1760373788093,0.5233,4147.1,4146.8,0.43367]
[1760373788299,0.95696,4147.0,4146.9,0.43366]
[1760373788491,4.29192,4147.2,4146.0,3.4084]
[1760373788692,0.5233,4146.7,4146.6,0.43369]
[1760373788892,0.5233,4146.7,4146.6,0.4337]
[1760373789602,0.4337,4146.6,4146.4,1.22611]
[1760373789898,6.37254361,4146.7,4146.0,3.2078]
[1760373790103,0.43375,4146.2,4146.1,0.43375]
[1760373790290,0.5233,4146.2,4145.5,3.4084]
[1760373790496,0.5233,4145.7,4145.6,0.43379]
[1760373790703,0.5233,4145.7,4145.6,0.68079]
[1760373790704,0.0023221,4145.7,4145.6,0.68079]
[1760373790900,0.0023221,4145.7,4145.6,1.22619]
[1760373792391,0.5233,4145.6,4145.5,3.64161]
[1760373792600,0.5233,4145.6,4145.5,3.88861]
[1760373793697,0.5233,4145.6,4145.0,1.28524]
[1760373793698,0.43384,4145.2,4145.0,3.64166]
[1760373793902,0.43384,4145.2,4144.6,0.5454]
[1760373793903,0.5233,4145.2,4145.1,0.68085]
[1760373794304,0.5233,4145.4,4144.5,3.2078]
[1760373794598,0.5233,4145.4,4144.6,0.247]
[1760373794599,0.63297,4145.0,4144.6,0.247]
[1760373794905,0.95719,4144.8,4144.6,0.247]
[1760373795201,3.10885326,4144.7,4144.4,0.247]
[1760373795400,0.5233,4144.6,4144.5,0.43391]
[1760373795798,3.63215326,4144.6,4144.5,0.43391]
[1760373796200,0.43386,4145.0,4144.5,0.5454]
[1760373796408,0.5233,4144.8,4144.7,0.43389]
[1760373797403,0.5233,4144.9,4144.5,0.43391]
[1760373797602,0.5233,4144.9,4144.1,0.5454]
[1760373797797,0.5233,4144.4,4144.3,0.43393]
[1760373799208,0.95724,4144.3,4144.2,0.43394]
[1760373799408,0.5233,4144.3,4144.2,0.43394]
[1760373799610,0.5233,4144.3,4144.0,3.2078]
[1760373799611,0.43395,4144.2,4144.0,3.2078]
[1760373799914,0.5233,4143.8,4143.7,0.68099]
[1760373800111,0.5233,4143.8,4143.7,0.68245843]
[1760373800304,0.43392,4144.5,4143.7,0.24846843]
[1760373800613,0.95724,4144.3,4144.1,0.43395]
[1760373800806,0.5233,4144.3,4143.7,0.24846843]
[1760373801005,3.61860778,4144.2,4143.8,0.5454]
[1760373801206,3.61860778,4144.2,4144.1,0.43396]
[1760373801406,0.5233,4144.2,4144.1,0.43396]
[1760373801717,0.247,4144.9,4144.1,0.43396]
[1760373801718,3.2078,4145.3,4145.2,0.43384]
[1760373801916,3.7311,4145.3,4145.2,0.43384]
[1760373802212,0.247,4145.8,4145.5,0.496]
[1760373802213,3.2078,4145.8,4145.5,0.496]
[1760373802403,3.2078,4145.8,4145.6,0.9298]
[1760373802712,0.5025221,4145.7,4145.6,0.247]
[1760373803809,0.5002,4145.5,4145.4,0.247]
[1760373804009,0.5002,4145.5,4145.4,0.68082]
[1760373804507,0.5002,4145.5,4144.7,3.64169]
[1760373804508,3.28558125,4145.5,4144.7,3.64169]
[1760373804708,0.5002,4144.8,4144.7,3.2078]
[1760373805113,0.5002,4144.8,4144.1,0.496]
[1760373805114,3.19274509,4144.8,4144.4,0.43392]
[1760373805305,3.19274509,4144.8,4144.0,3.2078]
[1760373805306,0.5002,4144.7,4144.0,3.2078]
[1760373805505,0.5002,4144.5,4144.1,0.247]
[1760373805708,0.5002,4144.5,4144.4,0.43392]
[1760373805912,0.5002,4144.3,4144.2,0.43394]
[1760373806311,3.13181249,4144.6,4144.5,0.6993]
[1760373806506,0.4338,4145.6,4145.2,0.43383]
[1760373806711,0.43382,4145.4,4145.1,0.247]
[1760373806917,0.5002,4145.3,4145.2,0.43384]
[1760373807114,3.2078,4145.6,4145.5,0.43381]
[1760373807312,3.2078,4145.6,4145.5,0.92981]
[1760373807520,0.0023221,4145.7,4145.6,0.496]
[1760373808312,0.56124289,4145.7,4145.6,0.496]
[1760373809423,1.06144289,4145.7,4145.5,0.43381]
[1760373809720,1.06144289,4145.7,4144.7,1.08473]
[1760373809721,0.4339,4144.7,4144.5,3.64171]
[1760373809921,0.9341,4144.7,4144.5,3.64171]
[1760373810320,0.43385,4145.2,4144.5,4.29259]
[1760373810523,0.93404,4145.3,4145.1,0.43385]
[1760373810824,3.2078,4145.6,4145.5,0.496]
[1760373811024,3.7657859,4145.6,4145.5,0.496]
[1760373811619,4.1995859,4145.6,4145.4,0.43382]
[1760373811921,4.1418,4145.6,4145.4,0.43382]
[1760373812123,0.5002,4145.3,4145.2,0.43384]
[1760373812518,3.71935443,4145.3,4144.5,3.2078]
[1760373812718,3.71935443,4145.3,4144.2,0.496]
[1760373812719,0.43392,4144.5,4144.2,0.496]
[1760373812921,0.93415,4144.2,4143.8,0.496]
[1760373813121,0.93416,4144.1,4144.0,0.43396]
[1760373813630,0.93416,4144.1,4143.9,0.247]
[1760373813923,0.93416,4144.1,4143.9,1.17698]
[1760373814624,0.5002,4144.1,4143.9,1.17698]
[1760373815017,0.43394,4144.3,4144.2,0.43395]
[1760373815219,0.93414,4144.3,4144.1,0.247]
[1760373815424,0.5002,4144.2,4144.1,0.247]
[1760373815830,0.5002,4143.8,4143.7,0.00146843]
[1760373816325,0.43398,4144.0,4143.9,0.43397]
[1760373816623,3.15680049,4144.3,4144.2,0.43394]
[1760373816831,0.5002,4144.2,4144.0,0.43396]
[1760373817030,0.43396,4144.1,4143.9,0.43398]
[1760373817229,0.5002,4144.0,4143.9,0.43398]
[1760373817424,0.5002,4144.0,4143.9,0.92998]
[1760373817729,3.2078,4144.4,4143.7,0.00146843]
[1760373817730,0.5002,4144.3,4144.2,0.496]
[1760373818123,1.49269688,4144.3,4144.1,0.43395]
[1760373818320,0.55855688,4144.2,4144.1,0.43395]
[1760373818628,1.05875688,4144.2,4144.1,0.43395]
[1760373818829,0.5002,4143.8,4143.7,0.43545843]
[1760373819028,0.5002,4143.8,4143.7,0.68245843]
[1760373819427,0.43398,4143.9,4143.7,0.68245843]
[1760373819627,0.93418,4143.9,4143.7,0.68245843]
[1760373820029,0.93418,4143.9,4143.7,1.17845843]
[1760373820933,0.43399,4143.8,4143.7,1.17845843]
[1760373821133,0.93418,4143.9,4143.8,0.43399]
[1760373821633,0.93419,4143.8,4143.7,0.24846843]
[1760373821932,1.49343115,4143.8,4143.7,0.24846843]
[1760373822128,1.49343115,4143.8,4143.7,0.00146843]
[1760373822328,1.49343115,4143.8,4143.7,0.43546843]
[1760373822936,3.2078,4144.4,4144.3,0.43394]
[1760373823233,4.20096316,4144.4,4144.3,1.17694]
[1760373823438,3.76703316,4144.4,4144.3,1.17694]
[1760373824135,4.20096316,4144.4,4144.3,1.17694]
[1760373824330,0.93414,4144.3,4144.1,0.92995]
[1760373824629,1.08473,4144.8,4144.2,0.68095]
[1760373824838,0.43391,4144.6,4144.2,0.247]
[1760373825024,0.55939417,4144.5,4144.3,0.496]
[1760373825226,0.5002,4144.7,4144.6,0.43391]
[1760373825435,0.5002,4144.7,4144.6,0.92991]
[1760373825436,1.49348976,4144.7,4144.6,0.92991]
[1760373825736,0.55938976,4144.7,4144.6,4.38471]
[1760373826034,0.5002,4146.3,4145.6,0.496]
[1760373826235,0.43375,4146.1,4145.6,0.743]
[1760373826832,0.43375,4146.1,4145.6,0.496]
[1760373827037,0.93394,4146.3,4145.6,0.743]
[1760373827255,3.2078,4146.4,4145.6,0.743]
[1760373827630,0.4964221,4145.7,4145.6,0.247]
[1760373829636,0.0023221,4145.7,4145.6,0.7794]
[1760373830238,0.43371,4146.5,4145.8,0.5324]
[1760373830533,0.85977826,4147.1,4146.9,0.96606]
[1760373830534,0.43365,4147.1,4146.9,0.96606]
[1760373830733,0.43365,4147.1,4147.0,0.247]
[1760373830937,3.2078,4147.4,4146.5,3.2078]
[1760373830938,0.43369,4146.7,4146.5,3.2078]
[1760373831134,0.92782,4146.4,4146.3,0.247]
[1760373831537,0.930852,4146.4,4146.3,0.24914541]
[1760373832336,0.930852,4146.4,4146.3,0.00214541]
[1760373832640,7.21287873,4146.4,4146.3,0.24914541]
[1760373834238,4.00507873,4146.4,4146.3,0.24914541]
[1760373834439,0.003032,4146.4,4146.3,0.77714541]
[1760373834634,0.003032,4146.4,4146.3,3.98494541]
[1760373836132,0.003032,4146.4,4146.3,3.73794541]
[1760373836339,0.539032,4146.4,4146.3,3.45694541]
[1760373836735,0.003032,4146.4,4146.3,3.98494541]
[1760373839035,0.003032,4146.4,4146.3,4.17167541]
[1760373839240,0.003032,4146.4,4146.3,4.41867541]
[1760373839837,0.972752,4146.4,4146.3,3.89067541]
[1760373840038,0.972752,4146.4,4146.3,4.41867541]
[1760373840337,0.436752,4146.4,4146.3,4.41867541]
[1760373840540,0.972752,4146.4,4146.3,0.00214541]
[1760373840761,0.972752,4146.4,4146.3,0.24914541]
[1760373842949,0.972752,4146.4,4146.3,0.00214541]
[1760373843142,0.43382,4145.4,4145.3,3.64163]
[1760373843335,0.43382,4145.4,4145.3,3.88863]
[1760373843336,0.96982,4145.4,4145.3,3.88863]
[1760373843548,0.96982,4145.4,4145.3,3.4548]
[1760373843866,0.96987,4144.9,4144.8,3.2078]
[1760373844047,0.96987,4144.9,4144.8,0.52964512]
[1760373844048,0.96988,4144.9,4144.8,0.52964512]
[1760373844641,0.96988,4144.9,4144.8,0.00164512]
[1760373844840,0.2092,4145.5,4144.8,0.52964512]
[1760373845148,0.96983,4145.3,4145.2,0.528]
[1760373845445,0.96983,4145.3,4145.0,3.2078]
[1760373845446,0.43385,4145.1,4145.0,3.2078]
[1760373845634,0.43385,4145.1,4145.0,3.4548]
[1760373847441,0.43384,4145.3,4145.1,0.43385]
[1760373847647,0.536,4144.9,4144.8,0.00164512]
[1760373848142,3.72686803,4144.9,4144.8,0.00164512]
[1760373848347,3.72686803,4144.9,4143.0,4.16991]
[1760373848348,0.43409,4143.3,4143.0,4.16991]
[1760373848544,0.536,4143.3,4143.1,1.2091]
[1760373848847,0.43404,4143.7,4143.2,0.528]
[1760373849055,0.97005,4143.6,4143.1,0.247]
[1760373849549,0.97217692,4143.6,4143.2,0.528]
[1760373849747,0.97007,4143.5,4143.2,0.528]
[1760373849940,0.536,4143.5,4143.3,0.43408]
[1760373850242,0.97009,4143.3,4143.0,3.2078]
[1760373850437,0.536,4143.2,4143.1,0.247]
[1760373850642,0.43412,4143.0,4142.8,0.43413]
[1760373850842,0.97012,4143.0,4142.9,0.247]
[1760373851237,0.7452,4143.0,4142.3,0.96218]
[1760373851439,0.536,4142.7,4142.6,0.43415]
[1760373851637,0.536,4142.7,4142.4,0.68117]
[1760373851841,0.97016,4142.6,4141.9,3.7358]
[1760373852059,0.43416,4142.6,4142.3,0.43418]
[1760373852244,3.88029147,4142.5,4141.9,3.7358]
[1760373852445,0.536,4142.1,4142.0,0.247]
[1760373852847,0.536,4142.1,4141.5,0.528]
[1760373853046,0.536,4141.4,4141.2,0.24147299]
[1760373853247,0.536,4141.4,4141.2,1.20377299]
[1760373853942,0.2092,4142.0,4141.2,0.24147299]
[1760373853943,0.97029,4141.3,4141.2,0.24147299]
[1760373854946,0.536,4141.3,4141.2,0.24147299]
[1760373855353,0.2092,4142.0,4141.2,0.24147299]
[1760373855651,0.43426,4141.7,4141.3,0.43429]
[1760373855841,0.43426,4141.7,4141.3,0.68129]
[1760373856042,3.17410445,4141.6,4141.3,0.68129]
[1760373856547,0.536,4141.5,4141.4,0.43428]
[1760373857752,0.536,4141.8,4141.6,0.96226]
[1760373858047,3.20033929,4141.7,4141.6,0.96226]
[1760373858370,0.2092,4142.5,4142.1,0.4342]
[1760373858552,0.43418,4142.4,4142.1,0.4342]
[1760373858752,0.536,4142.3,4142.2,0.43419]
[1760373859245,3.61710771,4142.3,4142.2,0.43419]
[1760373859451,3.61710771,4142.3,4142.2,0.96219]
[1760373859642,0.536,4143.2,4142.9,0.43412]
[1760373859852,0.536,4143.2,4142.7,0.528]
[1760373860051,3.18402654,4142.9,4142.7,0.43415]
[1760373860246,3.18402654,4143.1,4142.7,0.43415]
[1760373860247,0.536,4142.8,4142.7,0.43415]
[1760373860651,3.648464,4142.8,4142.7,0.43415]
[1760373860849,0.536,4142.8,4142.7,0.43415]
[1760373861854,0.536,4143.4,4142.7,0.528]
[1760373862151,0.43403,4143.9,4143.5,0.43406]
[1760373862356,0.488,4143.9,4143.5,0.94746]
[1760373862556,0.488,4144.4,4143.5,0.94746]
[1760373862857,0.488,4144.4,4143.5,1.12416]
[1760373863755,0.43398,4144.3,4143.5,1.12416]
[1760373864556,0.488,4144.4,4143.5,1.12416]
[1760373865157,0.92197,4144.4,4143.5,1.12416]
[1760373865347,0.2092,4144.5,4143.2,0.5134]
[1760373865554,0.43408,4143.4,4143.2,0.43409]
[1760373865749,0.488,4143.3,4143.1,0.6811]
[1760373866152,0.204,4143.5,4142.9,3.2078]
[1760373866358,0.43409,4143.3,4143.0,0.68111]
[1760373866557,0.488,4143.2,4143.1,0.247]
[1760373869960,0.4341,4143.1,4143.0,0.43411]
[1760373870154,0.9221,4143.1,4143.0,0.68111]
[1760373870956,0.488,4142.7,4142.6,0.43415]
[1760373871257,0.488,4142.7,4141.9,1.08556]
[1760373871258,0.43416,4142.6,4142.5,0.247]
[1760373871555,0.92216,4142.6,4142.5,0.247]
[1760373872859,0.92216,4142.6,4142.5,0.68117]
[1760373873160,0.92219,4142.3,4142.2,0.4342]
[1760373873362,0.204,4142.5,4142.1,0.247]
[1760373873363,0.488,4142.4,4142.1,0.247]
[1760373873562,0.92223,4141.9,4141.3,3.7212]
[1760373873770,0.92224,4141.8,4141.7,0.43425]
[1760373874058,0.204,4142.0,4141.3,0.5134]
[1760373874059,0.43427,4141.6,4141.3,0.5134]
[1760373874263,0.488,4141.5,4141.4,0.68128]
[1760373874464,0.488,4141.5,4141.4,0.43428]